Workbook

Sheet Table 7-1
A1: Table 7-1. ESTIMATED FUTURE COST OF OUTSTANDING FEDERAL CREDIT PROGRAMS1
A2: (In billions of dollars)
A3: Program | B3: Outstanding 2022 | C3: Estimated Future Costs of 2022 Outstanding 2 | D3: Outstanding 2023 | E3: Estimated Future Costs of 2023 Outstanding 2
A6: Direct Loans: 2
A7: Federal Student Loans | B7: 1,380 | C7: 653 | D7: 1,378 | E7: 431
A8: Disaster Assistance | B8: 382 | C8: 62 | D8: 325 | E8: 54
A9: Farm Service Agency, Rural Development, Rural Housing | B9: 64 | C9: 2 | D9: 66 | E9: 3
A10: Housing and Urban Development | B10: 55 | C10: 14 | D10: 62 | E10: 18
A11: Rural Utilities Service and Rural Telephone Bank | B11: 56 | C11: 1 | D11: 59 | E11: -1
A12: Education Temporary Student Loan Purchase Authority | B12: 43 | C12: 21 | D12: 38 | E12: 18
A13: Transportation Infrastructure Finance and Innovation Act Loans | B13: 14 | C13: * | D13: 20 | E13: 1
A14: Advanced Technology Vehicle Manufacturing, Title 17 Loans | B14: 16 | C14: * | D14: 17 | E14: *
A15: International Assistance | B15: 11 | C15: 5 | D15: 13 | E15: 4
A16: Export-Import Bank | B16: 10 | C16: 1 | D16: 8 | E16: 1
A17: Treasury Economic Stabilization Program 3 | B17: 1 | C17: * | D17: 1 | E17: *
A18: Other direct loan programs 3 | B18: 20 | C18: 7 | D18: 43 | E18: 6
A19: Total direct loans | B19: 2,052 | C19: 766 | D19: 2,030 | E19: 536
A21: Guaranteed Loans: 2
A22: FHA Mutual Mortgage Insurance Fund | B22: 1,278 | C22: -39 | D22: 1,383 | E22: -31
A23: Department of Veterans Affairs (VA) Mortgages | B23: 941 | C23: 10 | D23: 995 | E23: 9
A24: FHA General and Special Risk Insurance Fund | B24: 187 | C24: -1 | D24: 168 | E24: -2
A25: Small Business Administration (SBA) Business Loan Guarantees 4 | B25: 188 | C25: 26 | D25: 166 | E25: 8
A26: Farm Service Agency, Rural Development, Rural Housing | B26: 147 | C26: -2 | D26: 145 | E26: -2
A27: Federal Student Loan Guarantees | B27: 96 | C27: 10 | D27: 80 | E27: 11
A28: International Assistance | B28: 32 | C28: 1 | D28: 33 | E28: 2
A29: Export-Import Bank | B29: 14 | C29: * | D29: 11 | E29: *
A30: Other guaranteed loan programs 3 | B30: 13 | C30: 1 | D30: 13 | E30: 1
A31: Total guaranteed loans 4 | B31: 2,896 | C31: 6 | D31: 2,992 | E31: -5
A32: Total Federal credit | B32: 4,948 | C32: 772 | D32: 5,022 | E32: 532
A33: * $500 million or less.
A34: 1 Future costs represent balance sheet estimates of allowance for subsidy cost, liabilities for loan guarantees, and estimated uncollectible principal and interest.
A35: 2 Excludes loans and guarantees by deposit insurance agencies and programs not included under credit reform, such as Tennessee Valley Authority loan guarantees. Defaulted guaranteed loans that result in loans receivable are included in direct loan amounts.
A36: 3 This table includes TARP and SBLF equity purchases and loans made to Federal Reserve 13(3) facilities authorized under the CARES Act in 2020. Future costs for TARP are calculated using the discount rate required by the Federal Credit Reform Act adjusted for market risks, as directed in legislation.
A37: 4 To avoid double-counting, outstandings for GNMA and SBA secondary market guarantees and TARP FHA Letter of Credit program are excluded from the totals.

Sheet Table 7-2
A1: Table 7-2. DIRECT LOAN SUBSIDY RATES, BUDGET AUTHORITY, AND LOAN LEVELS, 2023-2025
A2: (In millions of dollars)
A3: Agency and Program | B3: 2023 Actual | E3: 2024 Likely Enacted | H3: 2025 Proposed
B4: Subsidy rate 1 | C4: Subsidy budget authority | D4: Loan levels | E4: Subsidy rate 1 | F4: Subsidy budget authority | G4: Loan levels | H4: Subsidy rate 1 | I4: Subsidy budget authority | J4: Loan levels
A5: Agriculture:
A6: Agricultural Credit Insurance Fund Program Account | B6: -3.90 | C6: -107 | D6: 2,743 | E6: 0.22 | F6: 11 | G6: 4,553 | H6: 0.86 | I6: 30 | J6: 3,437
A7: Farm Storage Facility Loans Program Account | B7: -1.31 | C7: -4 | D7: 333 | E7: -0.15 | F7: -1 | G7: 540 | H7: -0.05 | I7: -* | J7: 540
A8: Rural Electrification and Telecommunications Loans Program Account | B8: -2.98 | C8: -205 | D8: 6,895 | E8: 16.03 | F8: 4,036 | G8: 25,168 | H8: 8.87 | I8: 1,003 | J8: 11,303
A9: Distance Learning, Telemedicine, and Broadband Program | B9: 12.29 | C9: 61 | D9: 500 | E9: 16.33 | F9: 66 | G9: 404 | H9: 15.92 | I9: 97 | J9: 610
A10: Rural Water and Waste Disposal Program Account | B10: -1.89 | C10: -20 | D10: 1,063 | E10: 8.48 | F10: 120 | G10: 1,410 | H10: 10.65 | I10: 146 | J10: 1,370
A11: Rural Community Facilities Program Account | B11: -7.46 | C11: -81 | D11: 1,079 | E11: -0.50 | F11: -8 | G11: 1,700 | H11: 1.12 | I11: 14 | J11: 1,250
A12: Rural Housing Insurance Fund Program Account | B12: 4.64 | C12: 82 | D12: 1,799 | E12: 12.75 | F12: 71 | G12: 563 | H12: 19.33 | I12: 291 | J12: 1,504
A13: Rural Microentrepreneur Assistance Program | B13: 5.34 | C13: * | D13: 6 | E13: 15.70 | F13: 2 | G13: 10 | H13: 21.79 | I13: 2 | J13: 10
A14: Intermediary Relending Program Fund Account | B14: 17.54 | C14: 3 | D14: 18 | E14: 30.35 | F14: 3 | G14: 11 | H14: 34.06 | I14: 6 | J14: 19
A15: Rural Economic Development Loans Program Account | B15: 9.87 | C15: 12 | D15: 115 | E15: 17.86 | F15: 7 | G15: 41 | H15: 19.81 | I15: 15 | J15: 75
A17: Commerce:
A18: Fisheries Finance Program Account | B18: -9.93 | C18: -21 | D18: 209 | E18: -6.61 | F18: -8 | G18: 124 | H18: -6.67 | I18: -9 | J18: 124
A19: Creating Helpful Incentives to Produce Semiconductors (CHIPS) Loan Program Account | B19: 0 | C19: 0 | D19: 0 | E19: 2 2.80 | F19: 700 | G19: 25,000 | H19: 2 2.94 | I19: 88 | J19: 3,000
A21: Defense--Military Programs:
A22: Defense Production Act Program Account | B22: 0 | C22: 0 | D22: 61 | E22: 0 | F22: 0 | G22: 0 | H22: 0 | I22: 0 | J22: 0
A24: Education:
A25: College Housing and Academic Facilities Loans Program Account | B25: 3.74 | C25: 16 | D25: 439 | E25: 1.98 | F25: 9 | G25: 429 | H25: 5.85 | I25: 19 | J25: 325
A26: TEACH Grant Program Account | B26: 45.65 | C26: 34 | D26: 75 | E26: 50.44 | F26: 39 | G26: 77 | H26: 50.18 | I26: 39 | J26: 78
A27: Federal Direct Student Loan Program Account | B27: 14.61 | C27: 19,290 | D27: 132,028 | E27: 22.79 | F27: 32,985 | G27: 144,732 | H27: 29.02 | I27: 42,265 | J27: 145,651
A29: Energy:
A30: Title 17 Innovative Technology Loan Guarantee Program | B30: 3.73 | C30: 14 | D30: 374 | E30: 2 2.76 | F30: 555 | G30: 20,123 | H30: 2 9.39 | I30: 3,326 | J30: 35,426
A31: Advanced Technology Vehicles Manufacturing Loan Program Account | B31: 3.38 | C31: 449 | D31: 13,313 | E31: 2 8.69 | F31: 616 | G31: 7,087 | H31: 2 10.17 | I31: 1,188 | J31: 11,682
A32: Tribal Energy Loan Guarantee Program | B32: 0 | C32: 0 | D32: 0 | E32: 0.08 | F32: * | G32: 195 | H32: 0.35 | I32: 7 | J32: 2,100
A33: Carbon Dioxide Transportation Infrastructure Finance and Innovation Program Account | B33: 0 | C33: 0 | D33: 0 | E33: 9.70 | F33: 302 | G33: 3,115 | H33: 10.86 | I33: 591 | J33: 5,445
A35: Homeland Security:
A36: Disaster Assistance Direct Loan Program Account | B36: 78.94 | C36: 7 | D36: 9 | E36: 91.22 | F36: 105 | G36: 115 | H36: 91.29 | I36: 89 | J36: 98
A38: Housing and Urban Development:
A39: FHA-General and Special Risk Program Account | B39: -8.13 | C39: -28 | D39: 341 | E39: -7.83 | F39: -29 | G39: 374 | H39: -7.39 | I39: -30 | J39: 411
A40: Green and Resilient Retrofit Program for Multifamily Housing | B40: 24.98 | C40: 24 | D40: 94 | E40: 38.54 | F40: 281 | G40: 726 | H40: 41.75 | I40: 68 | J40: 162
A42: State:
A43: Repatriation Loans Program Account | B43: 48.39 | C43: 1 | D43: 3 | E43: 54.19 | F43: 2 | G43: 3 | H43: 48.08 | I43: 2 | J43: 4
A45: Transportation:
A46: Railroad Rehabilitation and Improvement Program | B46: -0.76 | C46: -1 | D46: 182 | E46: 2 0.11 | F46: 1 | G46: 600 | H46: 2 1.60 | I46: 10 | J46: 600
A47: TIFIA Highway Trust Fund Program Account | B47: 1.17 | C47: 11 | D47: 903 | E47: 2 0.70 | F47: 28 | G47: 4,000 | H47: 2 1.35 | I47: 76 | J47: 5,658
A48: Maritime Guaranteed Loan (Title XI) Program Account | B48: 0 | C48: 0 | D48: 0 | E48: 2 4.58 | F48: 13 | G48: 284 | H48: 2 4.05 | I48: 6 | J48: 148
A50: Treasury:
A51: Community Development Financial Institutions Fund Program Account | B51: -4.54 | C51: -14 | D51: 303 | E51: 0.41 | F51: 2 | G51: 525 | H51: 2.30 | I51: 12 | J51: 525
A53: Veterans Affairs:
A54: Veterans Housing Benefit Program Fund | B54: -26.29 | C54: -3 | D54: 14 | E54: 11.54 | F54: 670 | G54: 5,807 | H54: 22.91 | I54: 2,211 | J54: 9,650
A55: Native American Veteran Housing Loan Program Account | B55: -15.16 | C55: -1 | D55: 9 | E55: -17.04 | F55: -3 | G55: 15 | H55: 0.03 | I55: * | J55: 15
A57: Corps of Engineers--Civil Works:
A58: Water Infrastructure Finance and Innovation Program Account | B58: 0 | C58: 0 | D58: 0 | E58: 2 4.95 | F58: 2 | G58: 44 | H58: 2 4.71 | I58: 2 | J58: 47
A60: Environmental Protection Agency:
A61: Water Infrastructure Finance and Innovation Program Account | B61: 0.74 | C61: 22 | D61: 2,893 | E61: 2 0.96 | F61: 84 | G61: 8,781 | H61: 2 0.91 | I61: 80 | J61: 8,781
A63: International Assistance Programs:
A64: Foreign Military Financing Loan Program Account | B64: 2.75 | C64: 55 | D64: 2,000 | E64: 2 1.48 | F64: 60 | G64: 4,000 | H64: 0 | I64: 0 | J64: 8,000
A65: Clean Technology Fund Program Account | B65: 22.01 | C65: 125 | D65: 568 | E65: 2 34.45 | F65: 125 | G65: 363 | H65: 2 36.21 | I65: 150 | J65: 414
A66: United States International Development Finance Corporation | B66: -7.47 | C66: -410 | D66: 5,485 | E66: -7.56 | F66: -567 | G66: 7,500 | H66: -3.25 | I66: -341 | J66: 10,500
A67: Contributions to IMF Facilities and Trust Funds | B67: 0 | C67: 0 | D67: 0 | E67: 0 | F67: 0 | G67: 0 | H67: 2 0.1 | I67: 14 | J67: 14,000
A69: Small Business Administration:
A70: Disaster Loans Program Account | B70: 12.91 | C70: 232 | D70: 1,794 | E70: 20.55 | F70: 226 | G70: 1,100 | H70: 22.03 | I70: 242 | J70: 1,100
A71: Business Loans Program Account | B71: 8.18 | C71: 4 | D71: 52 | E71: 10.46 | F71: 11 | G71: 101 | H71: 10.53 | I71: 12 | J71: 3 110
A73: Export-Import Bank of the United States:
A74: Export-Import Bank Loans Program Account | B74: -15.16 | C74: -224 | D74: 1,476 | E74: 0 | F74: 0 | G74: 0 | H74: 0 | I74: 0 | J74: 0
A75: Total | B75: N/A | C75: =SUM(C6:C74) -> 19,323 | D75: =SUM(D6:D74) -> 177,176 | E75: N/A | F75: =SUM(F6:F74) -> 40,516 | G75: =SUM(G6:G74) -> 269,620 | H75: N/A | I75: =SUM(I6:I74) -> 51,721 | J75: =SUM(J6:J74) -> 284,062
A76: N/A = Not applicable
A77: * $500,000 or less
A78: 1 Additional information on credit subsidy rates is contained in the Federal Credit Supplement.
A79: 2 Rate reflects notional estimate. Estimates will be determined at the time of execution and will reflect the terms of the contracts and other characteristics.
A80: 3 Includes the Microloan program, but does not include $100 million in direct 7(a) lending authority requested as part of a legislative proposal.

Sheet Table 7-3
A1: Table 7-3. LOAN GUARANTEE SUBSIDY RATES, BUDGET AUTHORITY, AND LOAN LEVELS, 2023-2025
A2: (In millions of dollars)
A3: Agency and Program | B3: 2023 Actual | E3: 2024 Likely Enacted | H3: 2025 Proposed
B4: Subsidy rate 1 | C4: Subsidy budget authority | D4: Loan levels | E4: Subsidy rate 1 | F4: Subsidy budget authority | G4: Loan levels | H4: Subsidy rate 1 | I4: Subsidy budget authority | J4: Loan levels
A5: Agriculture
A6: Food Supply Chain and Agriculture Pandemic Response Program Account | B6: 6.91 | C6: 37 | D6: 540 | E6: 0 | F6: 0 | G6: 0 | H6: 0 | I6: 0 | J6: 0
A7: Agricultural Credit Insurance Fund Program Account | B7: -0.13 | C7: -3 | D7: 1,987 | E7: -0.27 | F7: -16 | G7: 5,768 | H7: -0.41 | I7: -23 | J7: 5,618
A8: Commodity Credit Corporation Export Loans Program Account | B8: -0.26 | C8: -8 | D8: 3,085 | E8: -0.28 | F8: -15 | G8: 5,448 | H8: -0.27 | I8: -15 | J8: 5,453
A9: Rural Water and Waste Disposal Program Account | B9: -0.02 | C9: -* | D9: 24 | E9: -0.14 | F9: -* | G9: 50 | H9: -0.20 | I9: -* | J9: 50
A10: Rural Community Facilities Program Account | B10: -0.66 | C10: -1 | D10: 183 | E10: -0.86 | F10: -3 | G10: 300 | H10: -1.17 | I10: -8 | J10: 650
A11: Rural Housing Insurance Fund Program Account | B11: -0.81 | C11: -58 | D11: 7,167 | E11: -0.46 | F11: -76 | G11: 16,323 | H11: -0.54 | I11: -165 | J11: 30,400
A12: Rural Business Program Account | B12: 2.14 | C12: 44 | D12: 2,043 | E12: 2.29 | F12: 40 | G12: 1,754 | H12: 0.20 | I12: 6 | J12: 3,228
A13: Rural Energy for America Program | B13: 0.09 | C13: * | D13: 221 | E13: -0.69 | F13: -7 | G13: 1,020 | H13: -0.88 | I13: -18 | J13: 2,000
A14: Biorefinery Assistance Program Account | B14: 0 | C14: 0 | D14: 0 | E14: 32.96 | F14: 77 | G14: 234 | H14: 32.96 | I14: 63 | J14: 191
A16: Commerce
A17: Creating Helpful Incentives to Produce Semiconductors (CHIPS) Loan Program Account | B17: 0 | C17: 0 | D17: 0 | E17: 2 2.10 | F17: 21 | G17: 1,000 | H17: 2 2.03 | I17: 2 | J17: 100
A19: Energy
A20: Title 17 Innovative Technology Loan Guarantee Program | B20: 0.17 | C20: 6 | D20: 3,333 | E20: 0 | F20: 0 | G20: 0 | H20: 18.87 | I20: 360 | J20: 1,906
A21: Tribal Energy Loan Guarantee Program | B21: 0 | C21: 0 | D21: 0 | E21: 0 | F21: 0 | G21: 0 | H21: 2.17 | I21: 2 | J21: 108
A23: Health and Human Services
A24: Health Resources and Services | B24: 2.89 | C24: 1 | D24: 24 | E24: 2.53 | F24: 2 | G24: 72 | H24: 2.45 | I24: 2 | J24: 72
A26: Housing and Urban Development
A27: Indian Housing Loan Guarantee Fund Program Account | B27: 1.08 | C27: 3 | D27: 271 | E27: 0.10 | F27: * | G27: 361 | H27: 0.69 | I27: 4 | J27: 535
A28: Native Hawaiian Housing Loan Guarantee Fund Program Account | B28: -0.35 | C28: -* | D28: 5 | E28: -0.66 | F28: -* | G28: 7 | H28: -0.19 | I28: -* | J28: 9
A29: Native American Programs | B29: 5.63 | C29: 1 | D29: 20 | E29: 5.13 | F29: 1 | G29: 20 | H29: 4.41 | I29: 1 | J29: 20
A30: Community Development Loan Guarantees Program Account | B30: 0 | C30: 0 | D30: 153 | E30: 0 | F30: 0 | G30: 300 | H30: 0 | I30: 0 | J30: 400
A31: FHA-Mutual Mortgage Insurance Program Account | B31: -2.07 | C31: -4,663 | D31: 224,893 | E31: -1.43 | F31: -3,319 | G31: 231,417 | H31: -2.07 | I31: -4,919 | J31: 237,940
A32: FHA-General and Special Risk Program Account | B32: -1.99 | C32: -332 | D32: 16,649 | E32: -1.64 | F32: -262 | G32: 16,053 | H32: -2.06 | I32: -369 | J32: 17,946
A34: Interior
A35: Indian Guaranteed Loan Program Account | B35: 7.43 | C35: 11 | D35: 154 | E35: 6.04 | F35: 12 | G35: 202 | H35: 5.01 | I35: 11 | J35: 224
A37: Veterans Affairs
A38: Veterans Housing Benefit Program Fund | B38: 0.08 | C38: 112 | D38: 139,444 | E38: -0.03 | F38: -51 | G38: 145,176 | H38: -0.19 | I38: -299 | J38: 155,910
A40: International Assistance Programs
A41: Foreign Military Financing Loan Program Account | B41: 0 | C41: 0 | D41: 0 | E41: 0 | F41: 0 | G41: 6,000 | H41: 0 | I41: 0 | J41: 8,000
A42: Contribution to the Asian Development Bank | B42: 0 | C42: 0 | D42: 0 | E42: 0 | F42: 0 | G42: 0 | H42: 2 1.00 | I42: 24 | J42: 2,400
A43: Contribution to the International Bank for Reconstruction and Development | B43: 0 | C43: 0 | D43: 0 | E43: 0 | F43: 0 | G43: 0 | H43: 2 6.94 | I43: 763 | J43: 11,000
A44: Loan Guarantees to Israel Program Account | B44: 0 | C44: 0 | D44: 0 | E44: 0 | F44: 0 | G44: 500 | H44: 0 | I44: 0 | J44: 500
A45: U.S. International Development Finance Corporation Insurance of Debt Program Account | B45: 3.20 | C45: 50 | D45: 1,561 | E45: -0.34 | F45: -3 | G45: 900 | H45: 4.77 | I45: 71 | J45: 1,500
A47: Small Business Administration
A48: Business Loans Program Account | B48: 0 | C48: 0 | D48: 36,483 | E48: 0 | F48: 0 | G48: 55,000 | H48: 0 | I48: 0 | J48: 58,500
A50: Export-Import Bank of the United States
A51: Export-Import Bank Loans Program Account | B51: -1.22 | C51: -89 | D51: 7,294 | E51: -5.31 | F51: -623 | G51: 11,743 | H51: -3.78 | I51: -426 | J51: 11,254
A52: Total | B52: N/A | C52: =SUM(C6:C51) -> -4,889 | D52: =SUM(D6:D51) -> 445,534 | E52: N/A | F52: =SUM(F6:F51) -> -4,222 | G52: =SUM(G6:G51) -> 499,648 | H52: N/A | I52: =SUM(I6:I51) -> -4,933 | J52: =SUM(J6:J51) -> 555,914
A54: ADDENDUM: SECONDARY GUARANTEED LOAN COMMITMENT LIMITATIONS
A55: GNMA
A56: Guarantees of Mortgage-backed Securities | B56: -0.34 | C56: -1,363 | D56: 404,554 | E56: -0.32 | F56: -1,270 | G56: 396,914 | H56: -0.29 | I56: -1,246 | J56: 429,671
A58: Small Business Administration:
A59: Secondary Market Guarantee Program | B59: 0 | C59: 0 | D59: 9,000 | E59: 0 | F59: 0 | G59: 15,000 | H59: 0 | I59: 0 | J59: 15,000
A60: Total, secondary guarantee loan commitments | B60: N/A | C60: =SUM(C56:C59) -> -1,363 | D60: =SUM(D56:D59) -> 413,554 | E60: N/A | F60: =SUM(F56:F59) -> -1,270 | G60: =SUM(G56:G59) -> 411,914 | H60: N/A | I60: =SUM(I56:I59) -> -1,246 | J60: =SUM(J56:J59) -> 444,671
A61: N/A = Not applicable
A62: * $500,000 or less
A63: 1 Additional information on credit subsidy rates is contained in the Federal Credit Supplement.
A64: 2 Rate reflects notional estimate. Estimates will be determined at the time of execution and will reflect the terms of the contracts and other characteristics.

Sheet Table 7-4
A1: Table 7-4. SUMMARY OF FEDERAL DIRECT LOANS AND LOAN GUARANTEES 1
A2: (In billions of dollars)
M3: Cells in blue thru-out the workbook feed into the green cells
C4: Actual | K4: Estimate
C5: 2016 | D5: 2017 | E5: 2018 | F5: 2019 | G5: 2020 | H5: 2021 | I5: 2022 | J5: 2023 | K5: 2024 | L5: 2025
A6: Direct Loans: | M6: Notes | N6: Data
B7: Obligations | C7: 175.6 | D7: 180.0 | E7: 169.7 | F7: 173.6 | G7: 558.9 | H7: 235.7 | I7: 286.2 | J7: 180.9 | K7: 269.6 | L7: 284.3 | M7: Update J7 first, then copy over to the right | N7: From CREDDAG's adjusted obligations
B8: Disbursements | C8: 158.5 | D8: 164.4 | E8: 151.9 | F8: 150.8 | G8: 418.4 | H8: 198.8 | I8: 268.7 | J8: 150.3 | K8: 191.8 | L8: 234.3 | M8: Update J8 first, then copy over to the right | N8: From CREDDAG's adjusted disbursements
B9: New subsidy budget authority 2,3,4 | C9: -9.0 | D9: -1.0 | E9: -2.4 | F9: -1.2 | G9: 103.4 | H9: 83.3 | I9: 462.6 | J9: -189.0 | K9: 41.6 | L9: 51.7 | M9: Update J9 first, then copy over to the right | N9: From CMPD's BA + MOD Costs - MOD savings for Direct
B10: Reestimated subsidy budget authority 2,5 | C10: 8.0 | D10: 32.5 | E10: -10.3 | F10: 29.9 | G10: 67.1 | H10: 21.7 | I10: 3.8 | J10: 26.4 | K10: 102.0 | L10: ......... | M10: Each cell formula is unique | N10: From REEST_PY and CY Net - colm J | O10: *NOTE - Federal Highways routinely needs updated REEST numbers
B11: Total subsidy budget authority | C11: =SUM(C9:C10) -> -1.1 | D11: 31.5 | E11: -12.8 | F11: 28.7 | G11: 170.5 | H11: 105.0 | I11: 466.4 | J11: =SUM(J9:J10) -> -162.6 | K11: =SUM(K9:K10) -> 143.6 | L11: =SUM(L9:L10) -> 51.7
A13: Loan guarantees:
B14: Commitments 6 | C14: 537.6 | D14: 530.2 | E14: 461.7 | F14: 491.1 | G14: 1,305.5 | H14: 1,185.6 | I14: 618.9 | J14: 445.5 | K14: 499.6 | L14: 555.8 | M14: Update J14 first, then copy over to the right | N14: From CREDLNA's adjusted obligations
B15: Lender disbursements 6 | C15: 517.6 | D15: 520.6 | E15: 465.1 | F15: 482.7 | G15: 1,287.9 | H15: 1,176.9 | I15: 628.7 | J15: 444.3 | K15: 485.9 | L15: 545.4 | M15: Update J15 first, then copy over to the right | N15: From CREDLNA's adjusted disbursements
B16: New subsidy budget authority 2,4 | C16: -7.5 | D16: -8.8 | E16: -5.4 | F16: -9.6 | G16: 531.1 | H16: 278.6 | I16: 2.1 | J16: -4.4 | K16: -9.2 | L16: -4.9 | M16: Update J16 first, then copy over to the right | N16: From CMPGs BA + MOD Costs - MOD savings for Guaranteed
B17: Reestimated subsidy budget authority 2,5 | C17: -13.6 | D17: 16.8 | E17: 9.4 | F17: -20.2 | G17: -15.9 | H17: -17.9 | I17: -12.8 | J17: -8.9 | K17: -13.1 | L17: ......... | M17: Each cell formula is unique | N17: From REEST_PY and CY Net - colm K | O17: *NOTE - Federal Highways routinely needs updated REEST numbers
B18: Total subsidy budget authority | C18: =SUM(C16:C17) -> -21.1 | D18: 8.0 | E18: 4.0 | F18: -29.8 | G18: 515.2 | H18: 260.7 | I18: -10.7 | J18: =SUM(J16:J17) -> -13.3 | K18: =SUM(K16:K17) -> -22.4 | L18: =SUM(L16:L17) -> -4.9
A19: 1 As authorized by statute, this table includes TARP and SBLF equity purchases, as well as activity with Federal Reserve 13(3) lending facilities authorized by the 2020 CARES Act.
A20: 2 Credit subsidy costs for TARP transactions are calculated using the discount rate required by the Federal Credit Reform Act adjusted for market risks, as directed in legislation.
A21: 3 This table does not include finanical transactions with the International Monetary Fund (IMF). See pages 85-86 of the Analytical Perspectives volume of the 2018 Budget for a more complete discussion of the changes in budgetary presentation resulting from Title IX of the Deparment of State, Foreign Operations, and Related Programs Appropriations Act, 2016.
A22: 4 Includes budget authority for executing loan modifications.
A23: 5 Includes interest on reestimate.
A24: 6 To avoid double-counting, the face value of GNMA and SBA secondary market guarantees are excluded from the totals.

Sheet Table 7-5
A1: Table 7-5. REESTIMATES OF CREDIT SUBSIDIES ON LOANS DISBURSED BETWEEN 1992-2023 1
A2: (Outlays and receipts, in millions of dollars)
A3: Agency and Program | B3: 2011 | C3: 2012 | D3: 2013 | E3: 2014 | F3: 2015 | G3: 2016 | H3: 2017 | I3: 2018 | J3: 2019 | K3: 2020 | L3: 2021 | M3: 2022 | N3: 2023 | O3: 2024
A5: DIRECT LOANS
A7: Agriculture:
A8: Agriculture Credit Insurance Fund | B8: -147 | C8: 93 | D8: 1 | E8: 30.0000 | F8: -205.0000 | G8: 156.0000 | H8: -23.00000000 | I8: 29.00000000 | J8: 0.00000000 | K8: -73 | L8: 120.00000000 | M8: -310 | N8: -185.00000000 | O8: 49.00000000
A9: Farm Storage Facility Loans | B9: -19 | C9: -5 | D9: -19 | E9: -3 | F9: -6.0000 | G9: 18.0000 | H9: 0.00000000 | I9: 8.00000000 | J9: 23.00000000 | K9: 18 | L9: -37.00000000 | M9: -19 | N9: -30.00000000 | O9: 29.00000000
A10: Apple Loans | B10: -* | C10: -* | D10: -* | E10: -* | F10: -* | G10: -* | H10: -* | I10: -* | J10: * | K10: * | L10: --- | M10: --- | N10: 0.00000000 | O10: 0.00000000
A11: Emergency Boll Weevil Loans | B11: -* | C11: -2 | D11: -* | E11: -* | F11: -2.0000 | G11: 0.0000 | H11: 0.00000000 | I11: 0.00000000 | J11: * | K11: 0.00000000 | L11: -0.10000000 | M11: -0.10000000 | N11: 0.00000000 | O11: 0.00000000
A12: Distance Learning, Telemedicine and Broadband Loans | B12: -2 | C12: -30 | D12: 22 | E12: 107 | F12: 142.0000 | G12: -99.0000 | H12: 26.00000000 | I12: -42.00000000 | J12: 41.00000000 | K12: -29 | L12: -54.00000000 | M12: 10 | N12: -7.00000000 | O12: -23.00000000
A13: Rural Electrification and Telecommunications Loans | B13: 192 | C13: -66 | D13: 199 | E13: 655 | F13: -4.0000 | G13: 5.0000 | H13: -98.00000000 | I13: 165.00000000 | J13: 114.00000000 | K13: -369 | L13: 558.00000000 | M13: -79 | N13: 529.00000000 | O13: -986.00000000
A14: Rural Telephone Bank | B14: -4 | C14: -2 | D14: 1 | E14: 3 | F14: -1.0000 | G14: 1.0000 | H14: 0.00000000 | I14: 3.00000000 | J14: 3.00000000 | K14: * | L14: 1.00000000 | M14: 1 | N14: 1.00000000 | O14: 4.00000000
A15: Rural Housing Insurance Fund | B15: 170 | C15: 279 | D15: 175 | E15: 138 | F15: 43.0000 | G15: -44.0000 | H15: -94.00000000 | I15: -18.00000000 | J15: 9.00000000 | K15: 112 | L15: -147.00000000 | M15: -157 | N15: -357 | O15: 193
A16: Rural Economic Development Loans | B16: -2 | C16: * | D16: -1 | E16: -3 | F16: 0.0000 | G16: -4.0000 | H16: 0.00000000 | I16: -2.00000000 | J16: -2.00000000 | K16: -1 | L16: -1.00000000 | M16: -4 | N16: -5.00000000 | O16: -1.00000000
A17: Rural Development Loan Program | B17: -4 | C17: -3 | D17: -2 | E17: -1 | F17: 1.0000 | G17: 0.0000 | H17: -6.00000000 | I17: -1.00000000 | J17: -3.00000000 | K17: -1 | L17: -2.00000000 | M17: * | N17: -4.00000000 | O17: 0.00000000
A18: Rural Community Facilities Program | B18: -31 | C18: -100 | D18: -24 | E18: 5 | F18: 96.0000 | G18: 78.0000 | H18: 141.00000000 | I18: 27.00000000 | J18: 115.00000000 | K18: 174 | L18: -96.00000000 | M18: 85 | N18: 61.00000000 | O18: 54.00000000
A19: Rural Business and Industry Program | B19: 4 | C19: -20 | D19: 2 | E19: 2.000 | F19: 9.0000 | G19: 5.0000 | H19: 3.00000000 | I19: 0.00000000 | J19: 2.00000000 | K19: -* | L19: -0.06000000 | M19: -0.06000000 | N19: 0.00000000 | O19: 0.00000000
A20: Rural Water and Waste Disposal Program | B20: -52 | C20: -84 | D20: -193 | E20: -197 | F20: 19.0000 | G20: -137.0000 | H20: -81.00000000 | I20: 30.00000000 | J20: 48.00000000 | K20: 10 | L20: -521.00000000 | M20: 90 | N20: 93.00000000 | O20: 132.00000000
A21: P.L. 480 | B21: 23 | C21: 19 | D21: 10 | E21: 29 | F21: 8.0000 | G21: 6.0000 | H21: 7.00000000 | I21: 8.00000000 | J21: -6.00000000 | K21: 5 | L21: 1.00000000 | M21: 2 | N21: 1.00000000 | O21: 1.00000000
A22: Multifamily Housing Revitalization Program | B22: --- | C22: --- | D22: 13 | E22: 3 | F22: -1.0000 | G22: -3.0000 | H22: -4.00000000 | I22: -14.00000000 | J22: -4.00000000 | K22: -8 | L22: -17.00000000 | M22: -6 | N22: 0.00000000 | O22: 0.00000000
A23: Rural Microenterprise Investment Program | B23: --- | C23: --- | D23: * | E23: -* | F23: -1.0000 | G23: 0.0000 | H23: -1.00000000 | I23: 0.00000000 | J23: -2.00000000 | K23: 1 | L23: 0.04000000 | M23: * | N23: -2.00000000 | O23: 0.00000000
A25: Commerce:
A26: Fisheries Finance | B26: * | C26: * | D26: -9 | E26: 1 | F26: 1.0000 | G26: -3.0000 | H26: 6.00000000 | I26: 0.00000000 | J26: -5.00000000 | K26: -* | L26: -2.00000000 | M26: 7 | N26: 3.00000000 | O26: -5.00000000
A28: Defense-Military Programs:
A29: Military Housing Improvement Fund | B29: -8 | C29: -29 | D29: -4 | E29: -84 | F29: -53.0000 | G29: -13.0000 | H29: 8.00000000 | I29: -20.00000000 | J29: -7.00000000 | K29: -16 | L29: 42.00000000 | M29: 3 | N29: -44.00000000 | O29: -95.00000000
A31: Education:
A32: Federal Direct Student Loan Program | B32: -5,624 | C32: 5,511 | D32: -8,273 | E32: 5,737 | F32: 10,839.0000 | G32: 7,175.0000 | H32: 22,149.00000000 | I32: -8,861.00000000 | J32: 22,046.00000000 | K32: 47,656 | L32: 46,810.00000000 | M32: 9,227.00000000 | N32: -4,920.00000000 | O32: 51,855.00000000
A33: Temporary Student Loan Purchase Authority | B33: -5,529 | C33: -1,433 | D33: 1,293 | E33: -962 | F33: -1,871.0000 | G33: 868.0000 | H33: 3,746.00000000 | I33: 658.00000000 | J33: 2,345.00000000 | K33: 2,798 | L33: 940.00000000 | M33: 897 | N33: 198.00000000 | O33: 3,160.00000000
A34: College Housing and Academic Facilities Loans | B34: * | C34: -* | D34: -* | E34: -* | F34: -* | G34: -* | H34: -* | I34: -* | J34: -* | K34: -* | L34: -* | M34: -* | N34: 0.40000000 | O34: *
A35: Historically Black Colleges and Universities | B35: 68 | C35: -4 | D35: -125 | E35: -3 | F35: -8 | G35: 13 | H35: 103.00000000 | I35: 41.00000000 | J35: 8.00000000 | K35: -42 | L35: -100.00000000 | M35: 39 | N35: 23.00000000 | O35: -14.00000000
A36: TEACH Grants | B36: -5 | C36: 18 | D36: -15 | E36: -9 | F36: -28.0000 | G36: -2.0000 | H36: 121.00000000 | I36: 40.00000000 | J36: 4.00000000 | K36: -20 | L36: 59.00000000 | M36: 50 | N36: 13.00000000 | O36: 1.00000000
A38: Energy:
A39: Advanced Technology Vehicle Manufacturing Fund | B39: -712 | C39: -985 | D39: -906 | E39: -40 | F39: -19.0000 | G39: -11.0000 | H39: -14.00000000 | I39: -74.00000000 | J39: -18.00000000 | K39: -13 | L39: 9.00000000 | M39: -8 | N39: -59.00000000 | O39: -158.00000000
A40: Title 17 Innovative Technology Fund | B40: 55 | C40: 409 | D40: 12 | E40: -42 | F40: -102.0000 | G40: -28.0000 | H40: -66.00000000 | I40: -216.00000000 | J40: -205.00000000 | K40: 15 | L40: 170.00000000 | M40: -294 | N40: -163.00000000 | O40: -142.00000000
A42: Health and Human Services:
A43: Consumer Operated and Oriented Plan | B43: 0 | C43: 0 | D43: 3 | E43: 11 | F43: 18.0000 | G43: 427.0000 | H43: -25.00000000 | I43: 212.00000000 | J43: 231.00000000 | K43: 2 | L43: -249.00000000 | M43: -21 | N43: 7.00000000 | O43: -59.00000000
A44: Consumer Operated and Oriented Plan Program Contingency Fund | B44: 0 | C44: 0 | D44: 0 | E44: * | F44: -1.0000 | G44: 89.0000 | H44: -3.00000000 | I44: 124.00000000 | J44: 4.00000000 | K44: -* | L44: -40.00000000 | M44: -4 | N44: -2.00000000 | O44: -6.00000000
A46: Homeland Security:
A47: Disaster Assistance | B47: -1 | C47: -252 | D47: -23 | E47: 45 | F47: 57.0000 | G47: -29.0000 | H47: -14.00000000 | I47: -5.00000000 | J47: -57.00000000 | K47: -2 | L47: 4.00000000 | M47: 14 | N47: 7.00000000 | O47: 2.00000000
A49: Interior:
A50: Bureau of Reclamation Loans | B50: -9 | C50: -9 | D50: -* | E50: * | F50: 0.0000 | G50: 0.0000 | H50: 0.00000000 | I50: 0.00000000 | J50: * | K50: * | L50: 0.03000000 | M50: 0.03000000 | N50: 0.00000000 | O50: *
A51: Bureau of Indian Affairs Direct Loans | B51: 1 | C51: * | D51: 0 | E51: 0 | F51: 0.0000 | G51: 1.0000 | H51: 1.00000000 | I51: 1.00000000 | J51: * | K51: 1.00000000 | L51: 1.00000000 | M51: 1 | N51: 1.00000000 | O51: 1.00000000
A52: Assistance to American Samoa | B52: * | C52: -* | D52: -* | E52: -* | F52: 0.0000 | G52: 0.0000 | H52: 0.00000000 | I52: 0.00000000 | J52: -* | K52: -* | L52: -* | M52: -* | N52: 0.00000000 | O52: -*
A54: Housing and Urban Development
A55: Emergency Homeowners' Relief Fund | B55: 0 | C55: 0 | D55: 0 | E55: 0 | F55: 0.0000 | G55: 0 | H55: 0 | I55: 0.0000 | J55: -2.00000000 | K55: 0.0000 | L55: -3.00000000 | M55: -1 | N55: -2.00000000 | O55: 1.00000000
A56: FHA-General and Special Risk Program Account | B56: 0 | C56: 0 | D56: 0 | E56: 0 | F56: 0.0000 | G56: -5.0000 | H56: 3.00000000 | I56: 87.00000000 | J56: 33.00000000 | K56: 105 | L56: 277.00000000 | M56: -226 | N56: 133.00000000 | O56: 132.00000000
A57: Green Retrofit Program for Multifamily Housing, Recovery Act | B57: 0 | C57: 0 | D57: 0 | E57: -3 | F57: 0.0000 | G57: -10.0000 | H57: -4.00000000 | I57: -7.00000000 | J57: -2.00000000 | K57: -4 | L57: -4.00000000 | M57: -3 | N57: -5.00000000 | O57: -3.00000000
A58: FHA-Mutual Mortgage Insurance Program Account | B58: 0 | C58: 0 | D58: 0 | E58: 0 | F58: 0 | G58: 0 | H58: -3.00000000 | I58: 0.00000000 | J58: 0.00000000 | K58: 0.00000000 | L58: 0.00000000 | M58: 0 | N58: 0 | O58: 0
A60: State:
A61: Repatriation Loans | B61: --- | C61: -7 | D61: -1 | E61: -1 | F61: -1.0000 | G61: -2.0000 | H61: -1.00000000 | I61: -1.00000000 | J61: -1.00000000 | K61: -1.00000000 | L61: -1.00000000 | M61: -3 | N61: -2.00000000 | O61: -1.00000000
A63: Transportation:
A64: Transportation Infrastructure Finance and Innovation Highway Trust Fund Program Account | B64: 17 | C64: -64 | D64: -55 | E64: 218 | F64: -52.0000 | G64: -41.0000 | H64: -80.00000000 | I64: -497.00000000 | J64: -235.00000000 | K64: -817 | L64: -100.00000000 | M64: -805 | N64: -9.00000000 | O64: 1,070.00000000
A65: TIFIA General Fund Program Account | B65: --- | C65: --- | D65: --- | E65: --- | F65: 0.0000 | G65: 39.0000 | H65: -9.00000000 | I65: -4.00000000 | J65: -10.00000000 | K65: -11 | L65: -* | M65: -1 | N65: -1.00000000 | O65: -3.00000000
A66: Railroad Rehabilitation and Improvement Program | B66: 13 | C66: -16 | D66: -7 | E66: -4 | F66: -46.0000 | G66: -7.0000 | H66: -7.00000000 | I66: -44.00000000 | J66: 49.00000000 | K66: 16 | L66: 34.00000000 | M66: -76 | N66: -11.00000000 | O66: 40.00000000
A67: TIFIA American Recovery and Reinvestment Act General Fund Program Account | B67: --- | C67: --- | D67: 0 | E67: -101 | F67: -1.0000 | G67: -1.0000 | H67: -3.00000000 | I67: 87.00000000 | J67: -1.00000000 | K67: -2 | L67: * | M67: -* | N67: -0.1 | O67: -*
A68: Maritime Guaranteed Loan (Title XI) | B68: --- | C68: --- | D68: --- | E68: --- | F68: --- | G68: --- | H68: --- | I68: --- | J68: --- | K68: --- | L68: -1.00000000 | M68: * | N68: -8.00000000 | O68: -6.00000000
A70: Treasury:
A71: GSE Mortgage-Backed Securities Purchase Program | B71: 2,054 | C71: -7,075 | D71: -320 | E71: -63 | F71: 146.0000 | G71: -13.0000 | H71: -30.00000000 | I71: -73.00000000 | J71: -5.00000000 | K71: -12 | L71: -114.00000000 | M71: -88 | N71: -33.00000000 | O71: -21.00000000
A72: Community Development Financial Institutions Fund | B72: 2 | C72: -1 | D72: * | E72: -6 | F72: -1.0000 | G72: 3.0000 | H72: -8.00000000 | I72: -7.00000000 | J72: -7.00000000 | K72: -13 | L72: -8.00000000 | M72: -15 | N72: 2.00000000 | O72: 1.00000000
A73: Troubled Asset Relief Program Direct Loan 2 | B73: -4,195 | C73: 3,334 | D73: -1,862 | E73: -818 | F73: -245.0000 | G73: 372.0000 | H73: 6.00000000 | I73: -4.00000000 | J73: -10.00000000 | K73: -54 | L73: 0.00000000 | M73: -2 | N73: 0.00000000 | O73: 0.00000000
A74: Troubled Asset Relief Program Equity 2 | B74: -47,207 | C74: 11,220 | D74: -7,790 | E74: -3,399 | F74: -388.0000 | G74: 43.0000 | H74: -37.00000000 | I74: -4.00000000 | J74: -5.00000000 | K74: 3 | L74: 1.00000000 | M74: 4 | N74: 0.00000000 | O74: 0.00000000
A75: Small Business Lending Fund 2 | B75: 0 | C75: -368 | D75: 32 | E75: 25 | F75: 14.0000 | G75: -40.0000 | H75: -22.00000000 | I75: 42.00000000 | J75: 1.00000000 | K75: 3 | L75: -1.00000000 | M75: -4 | N75: -2.00000000 | O75: 0.00000000
A76: Economic Stabilization 2 | B76: --- | C76: --- | D76: --- | E76: --- | F76: --- | G76: --- | H76: --- | I76: --- | J76: --- | K76: --- | L76: -13,715.00000000 | M76: -4,341.00000000 | N76: -32.00000000 | O76: -38.00000000
A78: Veterans Affairs:
A79: Veterans Housing Benefit Program Fund | B79: 45 | C79: 389 | D79: 20 | E79: -9 | F79: -14.0000 | G79: 24.0000 | H79: 4.00000000 | I79: 3.00000000 | J79: 10.00000000 | K79: -16 | L79: -31.00000000 | M79: 13 | N79: -2.00000000 | O79: 9.00000000
A80: Native American Veteran Housing | B80: 2 | C80: 6 | D80: 3 | E80: 1 | F80: 1 | G80: * | H80: 1 | I80: 1 | J80: 2 | K80: 1 | L80: * | M80: 3 | N80: 3.00000000 | O80: -3.00000000
A81: Vocational Rehabilitation Loans | B81: * | C81: -* | D81: * | E81: * | F81: -* | G81: -* | H81: * | I81: -* | J81: * | K81: -* | L81: * | M81: -* | N81: 0.01000000 | O81: *
A83: Environmental Protection Agency:
A84: Water Infrastructure Finance and Innovation | B84: --- | C84: --- | D84: --- | E84: --- | F84: --- | G84: --- | H84: --- | I84: --- | J84: --- | K84: -* | L84: 23.00000000 | M84: 114 | N84: 208 | O84: 462
A86: International Assistance Programs:
A87: Foreign Military Financing | B87: --- | C87: 37 | D87: 0 | E87: 0 | F87: 0.0000 | G87: 0.0000 | H87: 12.00000000 | I87: 104.00000000 | J87: 0.00000000 | K87: -57 | L87: -557.00000000 | M87: -166 | N87: -194.00000000 | O87: -74.00000000
A88: Development Finance Corporation:
A89: United States International Development Finance Corp Program Acct | B89: --- | C89: 0 | D89: 0 | E89: 0 | F89: 0.0000 | G89: 0.0000 | H89: 0.00000000 | I89: 0.00000000 | J89: 0.00000000 | K89: -47 | L89: 64.00000000 | M89: 79 | N89: 49.00000000 | O89: -141.00000000
A90: OPIC Direct Loans 3 | B90: 6 | C90: -12 | D90: 11 | E90: -88 | F90: -79.0000 | G90: -29.0000 | H90: 31.00000000 | I90: -35.00000000 | J90: -13.00000000 | K90: 0.00000000 | L90: 0.00000000 | M90: 0 | N90: 0.00000000 | O90: 0.00000000
A91: IMF Quota 3 | B91: 0 | C91: 17 | D91: 24 | E91: 5 | F91: 61.0000 | G91: 0.0000 | H91: 0.00000000 | I91: 0.00000000 | J91: 0.00000000 | K91: 0.00000000 | L91: 0.00000000 | M91: 0 | N91: 0.00000000 | O91: 0.00000000
A92: Loans to the IMF Direct Loan Program | B92: --- | C92: --- | D92: -25 | E92: -1 | F92: 140.0000 | G92: 0.0000 | H92: 0.00000000 | I92: 0.00000000 | J92: 0.00000000 | K92: 0.00000000 | L92: 0.00000000 | M92: 0 | N92: 0.00000000 | O92: 0.00000000
A93: Debt Reduction | B93: --- | C93: 0 | D93: 0 | E93: 0 | F93: 0.0000 | G93: 0.0000 | H93: 0.00000000 | I93: 0.00000000 | J93: 0.00000000 | K93: 16 | L93: 0.00000000 | M93: 0 | N93: 0.00000000 | O93: 0.00000000
A95: Small Business Administration:
A96: Business Loans | B96: 1 | C96: 1 | D96: -2 | E96: -20 | F96: -12.0000 | G96: 4.0000 | H96: -1.00000000 | I96: 1.00000000 | J96: -2.00000000 | K96: -* | L96: 16.00000000 | M96: -7 | N96: -8.00000000 | O96: -5.00000000
A97: Disaster Loans | B97: 136 | C97: 126 | D97: 1 | E97: 5 | F97: -7.0000 | G97: -75.0000 | H97: -108.00000000 | I97: -74.00000000 | J97: 62.00000000 | K97: -44 | L97: -20,393.00000000 | M97: -3,948.00000000 | N97: 27717 | O97: 31733
A99: Other Independent Agencies:
A100: Export-Import Bank Direct Loans | B100: 394 | C100: 382 | D100: 353 | E100: 1,038 | F100: 757.0000 | G100: -653.0000 | H100: -560.00000000 | I100: 40.00000000 | J100: 401.00000000 | K100: 8 | L100: 215.00000000 | M100: -127 | N100: -53.00000000 | O100: 10.00000000
A101: Federal Communications Commission | B101: 12 | C101: 3 | D101: -* | E101: -1 | F101: 0.0000 | G101: -1.0000 | H101: 0.00000000 | I101: 0.00000000 | J101: 0.00000000 | K101: 0.00000000 | L101: 0.00000000 | M101: 0 | N101: 0.00000000 | O101: 0.00000000
A103: LOAN GUARANTEES
A105: Agriculture:
A106: Agriculture Credit Insurance Fund | B106: -58 | C106: -75 | D106: -26 | E106: -12 | F106: -8.0000 | G106: -20.0000 | H106: -39.00000000 | I106: -16.00000000 | J106: 0.00000000 | K106: -13 | L106: -62.00000000 | M106: 12 | N106: -29.00000000 | O106: -59.00000000
A107: Biorefinery Assistance | B107: * | C107: 20 | D107: -26 | E107: -21 | F107: 6.0000 | G107: -9.0000 | H107: -4.00000000 | I107: 34.00000000 | J107: -17.00000000 | K107: -10 | L107: -1.00000000 | M107: -8 | N107: -8.00000000 | O107: 61.00000000
A108: Commodity Credit Corporation Export Guarantees | B108: -22 | C108: 48 | D108: 36 | E108: -3 | F108: -16.0000 | G108: 5.0000 | H108: 2.00000000 | I108: 6.00000000 | J108: -14.00000000 | K108: -9 | L108: 3.00000000 | M108: -13 | N108: 10.00000000 | O108: -17.00000000
A109: Rural Electrification and Telecommunications Loans | B109: -* | C109: -* | D109: -* | E109: 0 | F109: 0.0000 | G109: 0.0000 | H109: 0.00000000 | I109: 0.00000000 | J109: -* | K109: -* | L109: -* | M109: -* | N109: 0.00000000 | O109: 0.00000000
A110: Rural Housing Insurance Fund | B110: 183 | C110: 312 | D110: 650 | E110: 509 | F110: 580.0000 | G110: 2,804.0000 | H110: -6,102.00000000 | I110: -325.00000000 | J110: -314.00000000 | K110: 806 | L110: -536.00000000 | M110: -1710 | N110: 159.00000000 | O110: -455.00000000
A111: Rural Business and Industry Program | B111: 72 | C111: 178 | D111: 90 | E111: -9 | F111: -149.0000 | G111: -94.0000 | H111: -15.00000000 | I111: -135.00000000 | J111: -60.00000000 | K111: -17 | L111: -59.00000000 | M111: -21 | N111: 32.00000000 | O111: -139.00000000
A112: Rural Community Facilities Program | B112: 11 | C112: 13 | D112: -3 | E112: -4 | F112: -30.0000 | G112: 6.0000 | H112: 9.00000000 | I112: 4.00000000 | J112: -3.00000000 | K112: -7 | L112: -8.00000000 | M112: -6 | N112: -7.00000000 | O112: -4.00000000
A113: Rural Water and Waste Disposal Program | B113: * | C113: -* | D113: -* | E113: * | F113: 0.0000 | G113: 0.0000 | H113: 0.00000000 | I113: 0.00000000 | J113: -* | K113: -* | L113: -* | M113: -* | N113: 0.00000000 | O113: -*
A114: Rural Energy for America | B114: 4 | C114: 13 | D114: -* | E114: -25 | F114: -15.0000 | G114: -4.0000 | H114: -23.00000000 | I114: -7.00000000 | J114: -10.00000000 | K114: -20 | L114: -17.00000000 | M114: -18 | N114: -20.00000000 | O114: -12.00000000
A115: Rural Business Investment Program | D115: * | E115: 1 | F115: 0.0000 | G115: 0.0000 | H115: 1.00000000 | I115: 0.00000000 | J115: 4.00000000 | K115: -1 | L115: * | M115: -* | N115: * | O115: *
A117: Defense-Military Programs:
A118: Military Housing Improvement Fund | B118: -2 | C118: -2 | D118: -2 | E118: -* | F118: 2.0000 | G118: -1.0000 | H118: -7.00000000 | I118: -16.00000000 | J118: -9.00000000 | K118: -7 | L118: -6.00000000 | M118: -6 | N118: -6.00000000 | O118: -3.00000000
A119: Arms Initiative Guaranteed Loan Program | B119: -3 | C119: 0 | D119: -1 | E119: * | F119: 0.0000 | G119: 0.0000 | H119: 0.00000000 | I119: 0.00000000 | J119: 0.00000000 | K119: 0.00000000 | L119: 0.00000000 | M119: 0 | N119: 0.00000000 | O119: -
A121: Education:
A122: Federal Family Education Loan Program | B122: -14,455 | C122: -10,354 | D122: -6,305 | E122: -103 | F122: -869.0000 | G122: -1,499.0000 | H122: 2,118.00000000 | I122: 836.00000000 | J122: -802.00000000 | K122: 198 | L122: 927.00000000 | M122: 3866 | N122: 669.00000000 | O122: 2,591.00000000
A123: Health Education Assistance Loans | B123: 0 | C123: 0 | D123: 0 | E123: 0 | F123: -8.0000 | G123: -9.0000 | H123: -7.00000000 | I123: -4.00000000 | J123: -12.00000000 | K123: 2 | L123: -7.00000000 | M123: 3 | N123: 2.00000000 | O123: -3.00000000
A125: Energy:
A126: Title 17 Innovative Technology Fund | B126: * | C126: 12 | D126: -4 | E126: 11 | F126: -21.0000 | G126: -64.0000 | H126: -16.00000000 | I126: -8.00000000 | J126: -18.00000000 | K126: 34 | L126: -49.00000000 | M126: -16 | N126: -11.00000000 | O126: -7.00000000
A128: Health and Human Services:
A129: Heath Center Loan Guarantees | B129: -* | C129: 0 | D129: -* | E129: -* | F129: 0.0000 | G129: 0.0000 | H129: -1.00000000 | I129: 0.00000000 | J129: 0.00000000 | K129: 0.00000000 | L129: -* | M129: -* | N129: 0.00000000 | O129: 0.00000000
A130: Health Education Assistance Loans | B130: 13 | C130: -5 | D130: 25 | E130: -18 | F130: 0.0000 | G130: 0.0000 | H130: 0.00000000 | I130: 0.00000000 | J130: -* | K130: -* | L130: 0.00000000 | M130: 0.00000000 | N130: 0.00000000 | O130: 0.00000000
A132: Housing and Urban Development:
A133: Indian Housing Loan Guarantee | B133: -2 | C133: 13 | D133: -9 | E133: 91 | F133: -6.0000 | G133: 30.0000 | H133: -10.00000000 | I133: 1.00000000 | J133: -68.00000000 | K133: -25 | L133: 4.00000000 | M133: -58 | N133: -62.00000000 | O133: 6.00000000
A134: Title VI Indian Guarantees | B134: -1 | C134: -2 | D134: -1 | E134: -1 | F134: 0.0000 | G134: 1.0000 | H134: -2.00000000 | I134: -2.00000000 | J134: -11.00000000 | K134: -1 | L134: -1.00000000 | M134: -* | N134: -2.00000000 | O134: *
A135: Native Hawaiian Housing | B135: -* | C135: * | D135: -1 | E135: -1 | F135: -1.0000 | G135: 0.0000 | H135: 0.00000000 | I135: 1.00000000 | J135: 4.00000000 | K135: 2 | L135: -3.00000000 | M135: -2 | N135: 1.00000000 | O135: 0.00000000
A136: Community Development Loan Guarantees | B136: -8 | C136: 2 | D136: 5 | E136: -2 | F136: 0.0000 | G136: -34.0000 | H136: -3.00000000 | I136: -24.00000000 | J136: -3.00000000 | K136: -7 | L136: 1.00000000 | M136: -3 | N136: 0.00000000 | O136: -3.00000000
A137: FHA-Mutual Mortgage Insurance | B137: 5,014 | C137: 5,628 | D137: 17,642 | E137: 2,604 | F137: 6,151.0000 | G137: -9,094.0000 | H137: 13,058.00000000 | I137: 9,543.00000000 | J137: -13,312.00000000 | K137: -8,826 | L137: -10,231.00000000 | M137: -16,867.00000000 | N137: -2,697.00000000 | O137: -12,735.00000000
A138: FHA-General and Special Risk | B138: 1,848 | C138: -1,200 | D138: 3,626 | E138: -1,313 | F138: -456.0000 | G138: 1,200.0000 | H138: 2,460.00000000 | I138: 877.00000000 | J138: -612.00000000 | K138: -1,448 | L138: 284.00000000 | M138: -1,413.00000000 | N138: -511.00000000 | O138: -775.00000000
A139: Guarantees of Mortgage-backed Securities | B139: 684 | C139: 132 | D139: 97 | E139: 38 | F139: -2,873.0000 | G139: -1,738.0000 | H139: -1,337.00000000 | I139: -710.00000000 | J139: 2,980.00000000 | K139: 416 | L139: 1,608.00000000 | M139: -1,045.00000000 | N139: -769.00000000 | O139: 712.00000000
A140: Home Ownership Preservation Equity Fund | B140: 0 | C140: 0 | D140: 0 | E140: 0 | F140: 0.0000 | G140: 0.0000 | H140: 0.00000000 | I140: 0.00000000 | J140: 0.00000000 | K140: -15 | L140: -1.00000000 | M140: -1 | N140: -2.00000000 | O140: 1.00000000
A142: Interior:
A143: Bureau of Indian Affairs Guaranteed Loans | B143: 4 | C143: -19 | D143: 0 | E143: 0.0000 | F143: -19.0000 | G143: 10.0000 | H143: -16.00000000 | I143: 0.00000000 | J143: 13.00000000 | K143: 30 | L143: -15.00000000 | M143: -19 | N143: -16.00000000 | O143: -9.00000000
A144: Bureau of Indian Affairs Insured Loans | B144: -* | C144: 0 | D144: 0 | E144: 0 | F144: * | G144: * | H144: -* | I144: * | J144: -* | K144: * | L144: -* | M144: -* | N144: * | O144: -0.02100000
A146: Transportation:
A147: Maritime Guaranteed Loans (Title XI) | B147: 32 | C147: 3 | D147: -15 | E147: 24 | F147: -21.0000 | G147: 117.0000 | H147: -26.00000000 | I147: -120.00000000 | J147: 8.00000000 | K147: -61 | L147: 29.00000000 | M147: -31 | N147: 109.00000000 | O147: -37.00000000
A148: Minority Business Resource Center | B148: -* | C148: -* | D148: * | E148: * | F148: 0.0000 | G148: 0.0000 | H148: 0.00000000 | I148: 0.00000000 | J148: -* | K148: * | L148: * | M148: -* | N148: 0.00000000 | O148: 0.00000000
A150: Treasury:
A151: Troubled Asset Relief Program 2 | B151: -691 | C151: 28 | D151: -187 | E151: 0 | F151: 0.0000 | G151: 0.0000 | H151: 0.00000000 | I151: 0.00000000 | J151: 0.00000000 | K151: 0.00000000 | L151: 0.00000000 | M151: 0 | N151: 0.00000000 | O151: 0.00000000
A152: Troubled Asset Relief Program, Housing Programs 2 | B152: 0 | C152: * | D152: * | E152: -2 | F152: -4.0000 | G152: -3.0000 | H152: -3.00000000 | I152: -2.00000000 | J152: -1.00000000 | K152: -1 | L152: -1.00000000 | M152: -1 | N152: 0.00000000 | O152: 0.00000000
A154: Veterans Affairs:
A155: Veterans Housing Benefit Program Fund | B155: 1,084 | C155: 654 | D155: 1,162 | E155: 1,786 | F155: 200.0000 | G155: 130.0000 | H155: -1,472.00000000 | I155: -1,857.00000000 | J155: -3,145.00000000 | K155: -2,337 | L155: -1,159.00000000 | M155: 1,574.00000000 | N155: 77.00000000 | O155: 282.00000000
A157: International Assistance Programs:
A158: U.S. Agency for International Development:
A159: Loan Guarantees to Israel | B159: -21 | C159: -316 | D159: -35 | E159: -86 | F159: 17.0000 | G159: -19.0000 | H159: -32.00000000 | I159: -28.00000000 | J159: -37.00000000 | K159: -35 | L159: -23.00000000 | M159: -26 | N159: -29.00000000 | O159: -76.00000000
A160: Loan Guarantees to Egypt | B160: 6 | C160: -54 | D160: 213 | E160: 2 | F160: 35.0000 | G160: -351.0000 | H160: 0.00000000 | I160: 0.00000000 | J160: 0.00000000 | K160: 0.00000000 | L160: 0.00000000 | M160: 0 | N160: 0.00000000 | O160: 0.00000000
A161: Loan Guarantees to MENA | B161: 0 | C161: 0 | D161: -18 | E161: -* | F161: 1.0000 | G161: -4.0000 | H161: 64.00000000 | I161: 238.00000000 | J161: 174.00000000 | K161: -156 | L161: -17.00000000 | M161: -392 | N161: -413.00000000 | O161: 17.00000000
A162: Loan Guarantees to Ukraine | B162: 0 | C162: 0 | D162: 0 | E162: 0 | F162: 115.0000 | G162: -83.0000 | H162: 144.00000000 | I162: -40.00000000 | J162: -74.00000000 | K162: -188 | L162: -555.00000000 | M162: -227 | N162: 0.00000000 | O162: 0.00000000
A163: Development Finance Corporation:
A164: United States International Development Finance Corp Program Acct | B164: 0 | C164: 0 | D164: 0 | E164: 0.0000 | F164: 0.0000 | G164: 0.00000000 | H164: 0.00000000 | I164: 0.00000000 | J164: 0.00000000 | K164: 45 | L164: 8.00000000 | M164: 115 | N164: 97.00000000 | O164: 53.00000000
A165: U.S. International Development Finance Insurance of Debt | B165: 0 | C165: 0 | D165: 0 | E165: 0 | F165: 0 | G165: 0 | H165: 0 | I165: 0 | J165: 0 | K165: 0 | L165: 0 | M165: 0 | N165: 15.00000000 | O165: -16.00000000
A166: OPIC Guaranteed Loans 3 | B166: -13 | C166: 39 | D166: -27 | E166: -24 | F166: -130.0000 | G166: -6.0000 | H166: -2.00000000 | I166: 138.00000000 | J166: 82.00000000 | K166: 0.00000000 | L166: 0.00000000 | M166: 0 | N166: 0.00000000 | O166: 0.00000000
A167: Development Credit Authority 3 | B167: -6 | C167: 4 | D167: -5 | E167: 7 | F167: -10.0000 | G167: 1.0000 | H167: -1.00000000 | I167: -9.00000000 | J167: 2.00000000 | K167: 0.00000000 | L167: 0.00000000 | M167: 0 | N167: 0.00000000 | O167: 0.00000000
A168: Micro and Small Enterprise Development 3 | B168: -1 | C168: 0 | D168: 0 | E168: 0 | F168: 0.0000 | G168: 0.0000 | H168: 0.00000000 | I168: 0.00000000 | J168: 0.00000000 | K168: 0.00000000 | L168: 0.00000000 | M168: 0 | N168: 0.00000000 | O168: 0.00000000
A169: Urban and Environmental Credit 3 | B169: -10 | C169: -6 | D169: -3 | E169: -1 | F169: -2.0000 | G169: -1.0000 | H169: 1.00000000 | I169: -1.00000000 | J169: -2.00000000 | K169: -1 | L169: 0.00000000 | M169: -36 | N169: 2.00000000 | O169: -1.00000000
A171: Small Business Administration:
A172: Business Loans | B172: 3,711 | C172: 1,512 | D172: -860 | E172: -716 | F172: -1,407.0000 | G172: -1,068.0000 | H172: -326.00000000 | I172: -1,285.00000000 | J172: -628.00000000 | K172: -898 | L172: 741.00000000 | M172: 4,407 | N172: -4,148.00000000 | O172: -1,946.00000000
A174: Other Independent Agencies:
A175: Export-Import Bank Guarantees | B175: -370 | C175: -312 | D175: 291 | E175: -404 | F175: -286.0000 | G175: -305.0000 | H175: -127.00000000 | I175: -419.00000000 | J175: -236.00000000 | K175: -83 | L175: 330.00000000 | M175: 196 | N175: -156.00000000 | O175: -443.00000000
A176: Total | B176: -63,353 | C176: 7,543 | D176: -1,172 | E176: 4,528 | F176: 9,980 | G176: -2,025 | H176: 33,352 | I176: -1,622 | J176: 8,828 | K176: 36,659 | L176: 4,335 | M176: -11,822 | N176: 15196.461 | O176: 74137.979
A177: * Less than $500,000.
A178: 1 Excludes interest on reestimates. Additional information on credit reform subsidy reestimates is available in the Federal Credit Supplement.
A179: 2 As authorized by law, table includes reestimated subsidy costs of equity purchases under the TARP and the Small Business Lending Fund, IMF transactions authorized under the Supplemental Appropriations Act of 2009, and activity with Federal Reserve 13(3) facilities authorized under the CARES Act in 2020. Subsidy costs for TARP and IMF activity reflected on a credit reform basis are estimated using the discount rate required under the FCRA, adjusted for market risks, as directed in legislation.
A180: 3 Pursuant to the BUILD Act, these programs are now included under the Development Finance Corporation (DFC). Starting in 2020, reestimate numbers are reported by DFC.

Sheet Table 7-6
A1: Table 7-6. FACE VALUE OF GOVERNMENT-SPONSORED LENDING 1
A2: (In billions of dollars)
B4: 2022 | C4: 2023
A6: Government-Sponsored Enterprises:
A7: Fannie Mae 2 | B7: 4,334 | C7: 4,347
A8: Freddie Mac 3 | B8: 3,387 | C8: 3,342
A9: Federal Home Loan Banks | B9: 655 | C9: 827
A10: Farm Credit System | B10: 348 | C10: 375
A11: Total | B11: =SUM(B7:B10) -> 8,724 | C11: 8,891
A12: 1 New originations including issuance of securities and investment portfolio purchases, net of purchases of federally-guaranteed loans. Data for Fannie Mae, Freddie Mac, and the Federal Home Loan Banks as reported by the FHFA.
A13: 2 Data for Fannie Mae is net of purchases of federally-guaranteed loans and Freddie Mac issuances, as reported by the FHFA.
A14: 3 Data for Freddie Mac is net of purchases of federally-guaranteed loans and Fannie Mae issuances, as reported by the FHFA.

Sheet Table 7-7
A1: Table 7-7. LENDING AND BORROWING BY GOVERNMENT-SPONSORED ENTERPRISES (GSEs) 1
A2: (In millions of dollars)
A3: Enterprise | B3: 2022 | C3: 2023
A5: LENDING
A7: Federal National Mortgage Association:
A8: Portfolio programs:
A9: Net change | B9: -26,928 | C9: -8,020
A10: Outstandings | B10: 83,982 | C10: 75,962
A11: Mortgage-backed securities:
A12: Net change | B12: 221,091 | C12: 13,265
A13: Outstandings | B13: 4,333,716 | C13: 4,346,981
A15: Federal Home Loan Mortgage Corporation:
A16: Portfolio programs:
A17: Net change | B17: -34,000 | C17: 5,309
A18: Outstandings | B18: 79,773 | C18: 85,082
A19: Mortgage-backed securities:
A20: Net change | B20: 274,751 | C20: 42,388
A21: Outstandings | B21: 3,299,636 | C21: 3,342,024
A23: Farm Credit System:
A24: Agricultural credit bank:
A25: Net change | B25: 14,850 | C25: 8,261
A26: Outstandings | B26: 133,905 | C26: 142,166
A27: Farm credit banks:
A28: Net change | B28: 20,256 | C28: 17,225
A29: Outstandings | B29: 188,583 | C29: 205,808
A30: Federal Agricultural Mortgage Corporation:
A31: Net change | B31: 2,187 | C31: 1,767
A32: Outstandings | B32: 25,306 | C32: 27,073
A34: Federal Home Loan Banks:
A35: Net change | B35: 304,901 | C35: 175,684
A36: Outstandings | B36: 711,043 | C36: 886,728
A38: Less federally-guaranteed loans purchased by:
A39: Federal National Mortgage Association:
A40: Net change | B40: -1,128 | C40: 4,364
A41: Outstandings | B41: 13,567 | C41: 17,931
A42: Federal Home Loan Mortgage Corporation:
A43: Net change | B43: -734 | C43: 60
A44: Outstandings | B44: 123 | C44: 183
A45: Federal Home Loan Banks:
A46: Net change | B46: -301 | C46: -147
A47: Outstandings | B47: 2,267 | C47: 2,120
A48: Other:
A49: Net change | B49: N/A | C49: N/A
A50: Outstandings | B50: N/A | C50: N/A
A52: Less purchase of mortgage securities issued by other GSEs: 2
A53: Net change | B53: -11,906 | C53: 33,877
A54: Outstandings | B54: 121,957 | C54: 155,834
A56: BORROWING
A58: Federal National Mortgage Association:
A59: Portfolio programs:
A60: Net change | B60: -105,067 | C60: -53,814
A61: Outstandings | B61: 129,776 | C61: 75,962
A62: Mortgage-backed securities:
A63: Net change | B63: 170,412 | C63: 268,943
A64: Outstandings | B64: 4,078,038 | C64: 4,346,981
A66: Federal Home Loan Mortgage Corporation:
A67: Portfolio programs:
A68: Net change | B68: -34,162 | C68: 78,200
A69: Outstandings | B69: 163,249 | C69: 241,449
A70: Mortgage-backed securities:
A71: Net change | B71: 272,443 | C71: 368,051
A72: Outstandings | B72: 2,973,973 | C72: 3,342,024
A74: Farm Credit System:
A75: Agricultural credit bank:
A76: Net change | B76: 28,408 | C76: 4,580
A77: Outstandings | B77: 168,490 | C77: 173,070
A78: Farm credit banks:
A79: Net change | B79: 24,360 | C79: 20,261
A80: Outstandings | B80: 217,354 | C80: 237,615
A81: Federal Agricultural Mortgage Corporation:
A82: Net change | B82: 1,236 | C82: 1,866
A83: Outstandings | B83: 24,592 | C83: 26,458
A85: Federal Home Loan Banks: 3
A86: Net change | B86: 370,171 | C86: 199,378
A87: Outstandings | B87: 1,012,125 | C87: 1,211,503
A89: DEDUCTIONS 4
A91: Less borrowing from other GSEs:
A92: Net change | B92: N/A | C92: N/A
A93: Outstandings | B93: N/A | C93: N/A
A94: Less purchase of Federal debt securities:
A95: Net change | B95: N/A | C95: N/A
A96: Outstandings | B96: N/A | C96: N/A
A97: Less borrowing to purchase federally-guaranteed loans and securities:
A98: Net change | B98: -10,642 | C98: 4,277
A99: Outstandings | B99: 15,957 | C99: 20,234
A100: Less borrowing to purchase mortgage securities issued by other GSEs: 2
A101: Net change | B101: -11,906 | C101: 33,877
A102: Outstandings | B102: 121,957 | C102: 155,834
A103: N/A = Not available.
A104: 1 Data do not reflect an official view of future GSE activity. The data for all years include programs of mortgage-backed securities. In cases where a GSE owns securities issued by the same GSE, including mortgage-backed securities, the borrowing and lending data for that GSE are adjusted to remove double-counting. Data for Fannie Mae, Freddie Mac, and the Federal Home Loan Banks as reported by the FHFA.
A105: 2 Includes Fannie Mae securities purchased by Freddie Mac and the Federal Home Loan Banks, and Freddie Mac securities purchased by Fannie Mae and the Federal Home Loan Banks.
A106: 3 The net change in borrowings is derived from a year-over-year comparison of borrowings in the Federal Home Loan Banks' audited financial statements.
A107: 4 Where totals and subtotals have not been calculated, a portion of the total is unavailable.

Sheet Table 7-8
A1: Table 7-8. DIRECT LOAN TRANSACTIONS OF THE FEDERAL GOVERNMENT
A2: (In millions of dollars)
A3: Agency and Account | B3: 2023 Actual | C3: Estimate
C4: 2024 | D4: 2025
A5: Department of Agriculture
A7: Farm Service Agency
A9: Agricultural Credit Insurance Fund Liquidating Account:
A10: Obligations | B10: 0 | C10: 0 | D10: 0
A11: Loan disbursements | B11: 0 | C11: 0 | D11: 0
A12: Change in outstandings | B12: -42 | C12: -11 | D12: -9
A13: Outstandings | B13: 72 | C13: 61 | D13: 52
A15: Farm Storage Facility Direct Loan Financing Account:
A16: Obligations | B16: 333 | C16: 540 | D16: 540
A17: Loan disbursements | B17: 354 | C17: 321 | D17: 534
A18: Change in outstandings | B18: 140 | C18: 80 | D18: 262
A19: Outstandings | B19: 1,322 | C19: 1,402 | D19: 1,664
A21: Agricultural Credit Insurance Fund Direct Loan Financing Account:
A22: Obligations | B22: 2,743 | C22: 4,552 | D22: 3,437
A23: Loan disbursements | B23: 2,622 | C23: 4,155 | D23: 4,423
A24: Change in outstandings | B24: 299 | C24: 2,465 | D24: 2,733
A25: Outstandings | B25: 15,240 | C25: 17,705 | D25: 20,438
A27: Commodity Credit Corporation Fund:
A28: Obligations | B28: 0 | C28: 0 | D28: 0
A29: Loan disbursements | B29: 8,497 | C29: 8,497 | D29: 8,497
A30: Change in outstandings | B30: 1,209 | C30: 1,209 | D30: 1,209
A31: Outstandings | B31: 3,569 | C31: 4,778 | D31: 5,987
A33: Rural Utilities Service
A35: Distance Learning, Telemedicine, and Broadband Direct Loan Financing Account:
A36: Obligations | B36: 500 | C36: 404 | D36: 610
A37: Loan disbursements | B37: 86 | C37: 417 | D37: 441
A38: Change in outstandings | B38: 19 | C38: 334 | D38: 306
A39: Outstandings | B39: 532 | C39: 866 | D39: 1,172
A41: Rural Development Insurance Fund Liquidating Account:
A42: Obligations | B42: 0 | C42: 0 | D42: 0
A43: Loan disbursements | B43: 0 | C43: 0 | D43: 0
A44: Change in outstandings | B44: -18 | C44: -16 | D44: -15
A45: Outstandings | B45: 124 | C45: 108 | D45: 93
A47: Rural Electrification and Telecommunications Direct Loan Financing Account:
A48: Obligations | B48: 6,895 | C48: 25,168 | D48: 11,303
A49: Loan disbursements | B49: 6,450 | C49: 7,839 | D49: 11,573
A50: Change in outstandings | B50: 3,940 | C50: 5,980 | D50: 9,499
A51: Outstandings | B51: 58,087 | C51: 64,067 | D51: 73,566
A53: Rural Telephone Bank Direct Loan Financing Account:
A54: Obligations | B54: 0 | C54: 0 | D54: 0
A55: Loan disbursements | B55: 0 | C55: 0 | D55: 0
A56: Change in outstandings | B56: -2 | C56: -3 | D56: -2
A57: Outstandings | B57: 8 | C57: 5 | D57: 3
A59: Rural Water and Waste Disposal Direct Loans Financing Account:
A60: Obligations | B60: 1,063 | C60: 1,410 | D60: 1,370
A61: Loan disbursements | B61: 866 | C61: 1,217 | D61: 1,504
A62: Change in outstandings | B62: 438 | C62: 399 | D62: 661
A63: Outstandings | B63: 13,528 | C63: 13,927 | D63: 14,588
A65: Rural Electrification and Telecommunications Liquidating Account:
A66: Obligations | B66: 0 | C66: 0 | D66: 0
A67: Loan disbursements | B67: 0 | C67: 0 | D67: 0
A68: Change in outstandings | B68: -919 | C68: -29 | D68: -23
A69: Outstandings | B69: 200 | C69: 171 | D69: 148
A71: Rural Housing Service
A73: Rural Housing Insurance Fund Liquidating Account:
A74: Obligations | B74: 0 | C74: 0 | D74: 0
A75: Loan disbursements | B75: 0 | C75: 0 | D75: 0
A76: Change in outstandings | B76: -276 | C76: -248 | D76: -243
A77: Outstandings | B77: 4,802 | C77: 4,554 | D77: 4,311
A79: Rural Housing Insurance Fund Direct Loan Financing Account:
A80: Obligations | B80: 1,800 | C80: 564 | D80: 1,504
A81: Loan disbursements | B81: 1,789 | C81: 1,132 | D81: 1,465
A82: Change in outstandings | B82: 654 | C82: -135 | D82: 198
A83: Outstandings | B83: 17,810 | C83: 17,675 | D83: 17,873
A85: Rural Community Facility Direct Loans Financing Account:
A86: Obligations | B86: 1,079 | C86: 1,700 | D86: 1,250
A87: Loan disbursements | B87: 823 | C87: 1,754 | D87: 1,701
A88: Change in outstandings | B88: 425 | C88: 1,192 | D88: 1,082
A89: Outstandings | B89: 11,975 | C89: 13,167 | D89: 14,249
A91: Rural Business–Cooperative Service
A93: Rural Economic Development Direct Loan Financing Account:
A94: Obligations | B94: 115 | C94: 41 | D94: 75
A95: Loan disbursements | B95: 65 | C95: 99 | D95: 59
A96: Change in outstandings | B96: 30 | C96: 59 | D96: 7
A97: Outstandings | B97: 207 | C97: 266 | D97: 273
A99: Rural Development Loan Fund Direct Loan Financing Account:
A100: Obligations | B100: 18 | C100: 11 | D100: 19
A101: Loan disbursements | B101: 16 | C101: 18 | D101: 15
A102: Change in outstandings | B102: -14 | C102: -14 | D102: -17
A103: Outstandings | B103: 288 | C103: 274 | D103: 257
A105: Rural Business and Industry Direct Loans Financing Account:
A106: Obligations | B106: 0 | C106: 0 | D106: 0
A107: Loan disbursements | B107: 0 | C107: 0 | D107: 0
A108: Change in outstandings | B108: 0 | C108: -1 | D108: 0
A109: Outstandings | B109: 2 | C109: 1 | D109: 1
A111: Rural Microenterprise Investment Direct Loan Financing Account:
A112: Obligations | B112: 6 | C112: 10 | D112: 10
A113: Loan disbursements | B113: 3 | C113: 4 | D113: 6
A114: Change in outstandings | B114: -1 | C114: 0 | D114: 3
A115: Outstandings | B115: 39 | C115: 39 | D115: 42
A117: Foreign Agricultural Service
A119: Expenses, Public Law 480, Foreign Assistance Programs, Agriculture Liquidating Account:
A120: Obligations | B120: 0 | C120: 0 | D120: 0
A121: Loan disbursements | B121: 0 | C121: 0 | D121: 0
A122: Change in outstandings | B122: -33 | C122: -37 | D122: -37
A123: Outstandings | B123: 175 | C123: 138 | D123: 101
A125: P.L. 480 Direct Credit Financing Account:
A126: Obligations | B126: 0 | C126: 0 | D126: 0
A127: Loan disbursements | B127: 0 | C127: 0 | D127: 0
A128: Change in outstandings | B128: -54 | C128: -34 | D128: -30
A129: Outstandings | B129: 227 | C129: 193 | D129: 163
A131: Debt Reduction Financing Account:
A132: Obligations | B132: 0 | C132: 0 | D132: 0
A133: Loan disbursements | B133: 0 | C133: 0 | D133: 0
A134: Change in outstandings | B134: -8 | C134: -10 | D134: -8
A135: Outstandings | B135: 79 | C135: 69 | D135: 61
A137: Department of Commerce
A139: National Oceanic and Atmospheric Administration
A141: Fisheries Finance Direct Loan Financing Account:
A142: Obligations | B142: 210 | C142: 124 | D142: 124
A143: Loan disbursements | B143: 12 | C143: 170 | D143: 155
A144: Change in outstandings | B144: -12 | C144: 110 | D144: 95
A145: Outstandings | B145: 326 | C145: 436 | D145: 531
A147: National Institute of Standards and Technology
A149: Creating Helpful Incentives to Produce Semiconductors (CHIPS) Direct Loan Financing Account:
A150: Obligations | B150: 0 | C150: 25,000 | D150: 3,000
A151: Loan disbursements | B151: 0 | C151: 5,000 | D151: 5,600
A152: Change in outstandings | B152: 0 | C152: 4,991 | D152: 5,554
A153: Outstandings | B153: 0 | C153: 4,991 | D153: 10,545
A155: Department of Defense–Military Programs
A157: Procurement
A159: Defense Production Act, Direct Loan Financing Account:
A160: Obligations | B160: 61 | C160: 0 | D160: 0
A161: Loan disbursements | B161: 0 | C161: 164 | D161: 0
A162: Change in outstandings | B162: 0 | C162: 164 | D162: 0
A163: Outstandings | B163: 0 | C163: 164 | D163: 164
A165: Family Housing
A167: Family Housing Improvement Direct Loan Financing Account:
A168: Obligations | B168: 0 | C168: 0 | D168: 0
A169: Loan disbursements | B169: 30 | C169: 0 | D169: 0
A170: Change in outstandings | B170: -26 | C170: -46 | D170: -46
A171: Outstandings | B171: 1,751 | C171: 1,705 | D171: 1,659
A173: Department of Education
A175: Office of Postsecondary Education
A177: College Housing and Academic Facilities Loans Liquidating Account:
A178: Obligations | B178: 0 | C178: 0 | D178: 0
A179: Loan disbursements | B179: 0 | C179: 0 | D179: 0
A180: Change in outstandings | B180: -2 | C180: -1 | D180: -1
A181: Outstandings | B181: 10 | C181: 9 | D181: 8
A183: College Housing and Academic Facilities Loans Financing Account:
A184: Obligations | B184: 0 | C184: 0 | D184: 0
A185: Loan disbursements | B185: 0 | C185: 0 | D185: 0
A186: Change in outstandings | B186: -1 | C186: 0 | D186: 0
A187: Outstandings | B187: 2 | C187: 2 | D187: 2
A189: Historically Black College and University Capital Financing Direct Loan Financing Account:
A190: Obligations | B190: 440 | C190: 429 | D190: 325
A191: Loan disbursements | B191: 106 | C191: 344 | D191: 305
A192: Change in outstandings | B192: 103 | C192: 335 | D192: 292
A193: Outstandings | B193: 372 | C193: 707 | D193: 999
A195: Office of Federal Student Aid
A197: Student Financial Assistance:
A198: Obligations | B198: 0 | C198: 0 | D198: 0
A199: Loan disbursements | B199: 0 | C199: 0 | D199: 0
A200: Change in outstandings | B200: 316 | C200: 92 | D200: 24
A201: Outstandings | B201: 1,313 | C201: 1,405 | D201: 1,429
A203: Federal Direct Student Loan Program Financing Account:
A204: Obligations | B204: 135,772 | C204: 144,733 | D204: 145,651
A205: Loan disbursements | B205: 122,268 | C205: 132,988 | D205: 133,932
A206: Change in outstandings | B206: -5,612 | C206: 28,335 | D206: 42,738
A207: Outstandings | B207: 1,336,158 | C207: 1,364,493 | D207: 1,407,231
A209: TEACH Grant Financing Account:
A210: Obligations | B210: 75 | C210: 77 | D210: 78
A211: Loan disbursements | B211: 82 | C211: 71 | D211: 73
A212: Change in outstandings | B212: 19 | C212: 2 | D212: 10
A213: Outstandings | B213: 809 | C213: 811 | D213: 821
A215: Student Loan Acquisition Account:
A216: Obligations | B216: 0 | C216: 0 | D216: 0
A217: Loan disbursements | B217: 0 | C217: 0 | D217: 0
A218: Change in outstandings | B218: -1,106 | C218: -1,561 | D218: -733
A219: Outstandings | B219: 13,083 | C219: 11,522 | D219: 10,789
A221: Temporary Student Loan Purchase Authority Financing Account:
A222: Obligations | B222: 0 | C222: 0 | D222: 0
A223: Loan disbursements | B223: 0 | C223: 0 | D223: 0
A224: Change in outstandings | B224: -3,508 | C224: -3,589 | D224: -2,316
A225: Outstandings | B225: 23,673 | C225: 20,084 | D225: 17,768
A227: Temporary Student Loan Purchase Authority Conduit Financing Account:
A228: Obligations | B228: 0 | C228: 0 | D228: 0
A229: Loan disbursements | B229: 0 | C229: 0 | D229: 0
A230: Change in outstandings | B230: -86 | C230: -30 | D230: -30
A231: Outstandings | B231: 1,198 | C231: 1,168 | D231: 1,138
A233: Department of Energy
A235: Energy Programs
A237: Carbon Dioxide Transportation Infrastructure Finance and Innovation Direct Loan Financing Account:
A238: Obligations | B238: 0 | C238: 3,115 | D238: 5,445
A239: Loan disbursements | B239: 0 | C239: 478 | D239: 3,473
A240: Change in outstandings | B240: 0 | C240: 487 | D240: 3,562
A241: Outstandings | B241: 0 | C241: 487 | D241: 4,049
A243: Title 17 Innovative Technology Direct Loan Financing Account:
A244: Obligations | B244: 374 | C244: 20,123 | D244: 35,426
A245: Loan disbursements | B245: 588 | C245: 3,484 | D245: 22,661
A246: Change in outstandings | B246: 100 | C246: 3,094 | D246: 22,545
A247: Outstandings | B247: 15,782 | C247: 18,876 | D247: 41,421
A249: Tribal Energy Direct Loan Financing Account:
A250: Obligations | B250: 0 | C250: 195 | D250: 2,100
A251: Loan disbursements | B251: 0 | C251: 30 | D251: 401
A252: Change in outstandings | B252: 0 | C252: 30 | D252: 401
... 469 more rows

Sheet Table 7-9
A1: Table 7-9. GUARANTEED LOAN TRANSACTIONS OF THE FEDERAL GOVERNMENT
A2: (In millions of dollars)
A3: Agency and Account | B3: 2023 Actual | C3: Estimate
C4: 2024 | D4: 2025
A5: Department of Agriculture
A7: Office of the Secretary
A9: Food Supply Chain and Agriculture Pandemic Response Guaranteed Loans Financing Account:
A10: Commitments | B10: 540 | C10: 0 | D10: 0
A11: New guaranteed loans | B11: 296 | C11: 342 | D11: 222
A12: Change in outstandings | B12: 246 | C12: 266 | D12: 121
A13: Outstandings | B13: 284 | C13: 550 | D13: 671
A15: Farm Service Agency
A17: Agricultural Credit Insurance Fund Guaranteed Loan Financing Account:
A18: Commitments | B18: 1,987 | C18: 5,768 | D18: 5,618
A19: New guaranteed loans | B19: 2,013 | C19: 5,078 | D19: 5,662
A20: Change in outstandings | B20: -419 | C20: 2,157 | D20: 2,400
A21: Outstandings | B21: 18,460 | C21: 20,617 | D21: 23,017
A23: Commodity Credit Corporation Export Guarantee Financing Account:
A24: Commitments | B24: 3,085 | C24: 5,448 | D24: 5,453
A25: New guaranteed loans | B25: 2,847 | C25: 5,448 | D25: 5,453
A26: Change in outstandings | B26: -412 | C26: 2,777 | D26: 952
A27: Outstandings | B27: 2,798 | C27: 5,575 | D27: 6,527
A29: Rural Utilities Service
A31: Rural Water and Waste Water Disposal Guaranteed Loans Financing Account:
A32: Commitments | B32: 24 | C32: 50 | D32: 50
A33: New guaranteed loans | B33: 14 | C33: 19 | D33: 30
A34: Change in outstandings | B34: 0 | C34: -2 | D34: 9
A35: Outstandings | B35: 111 | C35: 109 | D35: 118
A37: Rural Housing Service
A39: Rural Housing Insurance Fund Liquidating Account:
A40: Commitments | B40: 0 | C40: 0 | D40: 0
A41: New guaranteed loans | B41: 0 | C41: 0 | D41: 0
A42: Change in outstandings | B42: 0 | C42: 0 | D42: 0
A43: Outstandings | B43: 1 | C43: 1 | D43: 1
A45: Rural Housing Insurance Fund Guaranteed Loan Financing Account:
A46: Commitments | B46: 7,167 | C46: 16,323 | D46: 30,400
A47: New guaranteed loans | B47: 6,015 | C47: 15,200 | D47: 29,081
A48: Change in outstandings | B48: -2,580 | C48: -1,299 | D48: 12,770
A49: Outstandings | B49: 114,024 | C49: 112,725 | D49: 125,495
A51: Rural Community Facility Guaranteed Loans Financing Account:
A52: Commitments | B52: 183 | C52: 300 | D52: 650
A53: New guaranteed loans | B53: 147 | C53: 276 | D53: 309
A54: Change in outstandings | B54: 95 | C54: 168 | D54: 187
A55: Outstandings | B55: 1,288 | C55: 1,456 | D55: 1,643
A57: Rural Business–Cooperative Service
A59: Rural Business Investment Program Guarantee Financing Account:
A60: Commitments | B60: 0 | C60: 0 | D60: 0
A61: New guaranteed loans | B61: 0 | C61: 0 | D61: 0
A62: Change in outstandings | B62: 0 | C62: 0 | D62: 0
A63: Outstandings | B63: 8 | C63: 8 | D63: 8
A65: Rural Business and Industry Guaranteed Loans Financing Account:
A66: Commitments | B66: 2,043 | C66: 1,754 | D66: 3,227
A67: New guaranteed loans | B67: 1,805 | C67: 1,697 | D67: 2,238
A68: Change in outstandings | B68: 812 | C68: 392 | D68: 875
A69: Outstandings | B69: 8,774 | C69: 9,166 | D69: 10,041
A71: Rural Energy for America Guaranteed Loan Financing Account:
A72: Commitments | B72: 221 | C72: 1,020 | D72: 2,000
A73: New guaranteed loans | B73: 464 | C73: 255 | D73: 628
A74: Change in outstandings | B74: 367 | C74: 96 | D74: 460
A75: Outstandings | B75: 1,909 | C75: 2,005 | D75: 2,465
A77: Biorefinery Assistance Guaranteed Loan Financing Account:
A78: Commitments | B78: 0 | C78: 234 | D78: 191
A79: New guaranteed loans | B79: 0 | C79: 59 | D79: 211
A80: Change in outstandings | B80: -6 | C80: 0 | D80: 151
A81: Outstandings | B81: 392 | C81: 392 | D81: 543
A83: Department of Commerce
A85: National Institute of Standards and Technology
A87: Creating Helpful Incentives to Produce Semiconductors (CHIPS) Guaranteed Loan Financing Account:
A88: Commitments | B88: 0 | C88: 1,000 | D88: 100
A89: New guaranteed loans | B89: 0 | C89: 200 | D89: 220
A90: Change in outstandings | B90: 0 | C90: 200 | D90: 220
A91: Outstandings | B91: 0 | C91: 200 | D91: 420
A93: Department of Defense - Military Programs
A95: Family Housing
A97: Family Housing Improvement Guaranteed Loan Financing Account:
A98: Commitments | B98: 0 | C98: 0 | D98: 0
A99: New guaranteed loans | B99: 0 | C99: 0 | D99: 0
A100: Change in outstandings | B100: -28 | C100: -8 | D100: -30
A101: Outstandings | B101: 847 | C101: 839 | D101: 809
A103: Department of Education
A105: Office of Federal Student Aid
A107: Federal Family Education Loan Liquidating Account:
A108: Commitments | B108: 0 | C108: 0 | D108: 0
A109: New guaranteed loans | B109: 0 | C109: 0 | D109: 0
A110: Change in outstandings | B110: -289 | C110: -44 | D110: -44
A111: Outstandings | B111: 311 | C111: 267 | D111: 223
A113: Federal Family Education Loan Program Financing Account:
A114: Commitments | B114: 0 | C114: 0 | D114: 0
A115: New guaranteed loans | B115: 0 | C115: 0 | D115: 0
A116: Change in outstandings | B116: -15,945 | C116: -4,829 | D116: -4,421
A117: Outstandings | B117: 79,776 | C117: 74,947 | D117: 70,526
A119: Health Education Assistance Loans Liquidating Account:
A120: Commitments | B120: 0 | C120: 0 | D120: 0
A121: New guaranteed loans | B121: 0 | C121: 0 | D121: 0
A122: Change in outstandings | B122: 0 | C122: -1 | D122: -1
A123: Outstandings | B123: 3 | C123: 2 | D123: 1
A125: Health Education Assistance Loans Financing Account:
A126: Commitments | B126: 0 | C126: 0 | D126: 0
A127: New guaranteed loans | B127: 0 | C127: 0 | D127: 0
A128: Change in outstandings | B128: -26 | C128: -10 | D128: -10
A129: Outstandings | B129: 25 | C129: 15 | D129: 5
A131: Department of Energy
A133: Energy Programs
A135: Tribal Indian Energy Resource Development Loan Guarantee Financing Account:
A136: Commitments | B136: 0 | C136: 0 | D136: 108
A137: New guaranteed loans | B137: 0 | C137: 0 | D137: 17
A138: Change in outstandings | B138: 0 | C138: 0 | D138: 17
A139: Outstandings | B139: 0 | C139: 0 | D139: 17
A141: Title 17 Innovative Technology Guaranteed Loan Financing Account:
A142: Commitments | B142: 3,333 | C142: 0 | D142: 1,906
A143: New guaranteed loans | B143: 0 | C143: 1,065 | D143: 1,408
A144: Change in outstandings | B144: -122 | C144: 890 | D144: 1,135
A145: Outstandings | B145: 1,660 | C145: 2,550 | D145: 3,685
A147: Department of Health and Human Services
A149: Health Resources and Services Administration
A151: Health Center Guaranteed Loan Financing Account:
A152: Commitments | B152: 24 | C152: 72 | D152: 72
A153: New guaranteed loans | B153: 24 | C153: 72 | D153: 72
A154: Change in outstandings | B154: 20 | C154: 62 | D154: 62
A155: Outstandings | B155: 80 | C155: 142 | D155: 204
A157: Department of Housing and Urban Development
A159: Public and Indian Housing Programs
A161: Indian Housing Loan Guarantee Fund Financing Account:
A162: Commitments | B162: 271 | C162: 361 | D162: 535
A163: New guaranteed loans | B163: 369 | C163: 361 | D163: 494
A164: Change in outstandings | B164: 57 | C164: 111 | D164: 244
A165: Outstandings | B165: 4,619 | C165: 4,730 | D165: 4,974
A167: Title VI Indian Federal Guarantees Financing Account:
A168: Commitments | B168: 20 | C168: 20 | D168: 20
A169: New guaranteed loans | B169: 5 | C169: 8 | D169: 8
A170: Change in outstandings | B170: -6 | C170: -3 | D170: -3
A171: Outstandings | B171: 69 | C171: 66 | D171: 63
A173: Native Hawaiian Housing Loan Guarantee Fund Financing Account:
A174: Commitments | B174: 5 | C174: 7 | D174: 9
A175: New guaranteed loans | B175: 5 | C175: 7 | D175: 9
A176: Change in outstandings | B176: 13 | C176: -19 | D176: -17
A177: Outstandings | B177: 113 | C177: 94 | D177: 77
A179: Community Planning and Development
A181: Community Development Loan Guarantees Financing Account:
A182: Commitments | B182: 153 | C182: 300 | D182: 400
A183: New guaranteed loans | B183: 23 | C183: 145 | D183: 145
A184: Change in outstandings | B184: -94 | C184: -20 | D184: -20
A185: Outstandings | B185: 661 | C185: 641 | D185: 621
A187: Housing Programs
A189: FHA-General and Special Risk Insurance Funds Liquidating Account:
A190: Commitments | B190: 0 | C190: 0 | D190: 0
A191: New guaranteed loans | B191: 0 | C191: 0 | D191: 0
A192: Change in outstandings | B192: -43 | C192: -49 | D192: -20
A193: Outstandings | B193: 76 | C193: 27 | D193: 7
A195: FHA-General and Special Risk Guaranteed Loan Financing Account:
A196: Commitments | B196: 16,650 | C196: 16,052 | D196: 17,946
A197: New guaranteed loans | B197: 22,250 | C197: 16,052 | D197: 17,946
A198: Change in outstandings | B198: -19,040 | C198: 545 | D198: 2,274
A199: Outstandings | B199: 167,488 | C199: 168,033 | D199: 170,307
A201: Home Ownership Preservation Equity Fund Financing Account:
A202: Commitments | B202: 0 | C202: 0 | D202: 0
A203: New guaranteed loans | B203: 0 | C203: 0 | D203: 0
A204: Change in outstandings | B204: -10 | C204: -6 | D204: -6
A205: Outstandings | B205: 34 | C205: 28 | D205: 22
A207: FHA-Mutual Mortgage Insurance Guaranteed Loan Financing Account:
A208: Commitments | B208: 224,893 | C208: 231,417 | D208: 237,940
A209: New guaranteed loans | B209: 224,893 | C209: 231,417 | D209: 237,940
A210: Change in outstandings | B210: 104,690 | C210: 92,974 | D210: 88,374
A211: Outstandings | B211: 1,382,817 | C211: 1,475,791 | D211: 1,564,165
A213: Government National Mortgage Association
A215: Guarantees of Mortgage-backed Securities Financing Account:
A216: Commitments | B216: 404,554 | C216: 396,914 | D216: 429,671
A217: New guaranteed loans | B217: 404,544 | C217: 396,914 | D217: 409,061
A218: Change in outstandings | B218: 188,387 | C218: 161,641 | D218: 179,478
A219: Outstandings | B219: 2,472,843 | C219: 2,634,484 | D219: 2,813,962
A221: Department of the Interior
A223: Bureau of Indian Affairs
A225: Indian Guaranteed Loan Financing Account:
A226: Commitments | B226: 154 | C226: 202 | D226: 223
A227: New guaranteed loans | B227: 93 | C227: 93 | D227: 93
A228: Change in outstandings | B228: 9 | C228: 9 | D228: 9
A229: Outstandings | B229: 533 | C229: 542 | D229: 551
A231: Department of Transportation
A233: Maritime Administration
A235: Maritime Guaranteed Loan (Title XI) Financing Account:
A236: Commitments | B236: 0 | C236: 0 | D236: 0
A237: New guaranteed loans | B237: 0 | C237: 0 | D237: 0
A238: Change in outstandings | B238: 0 | C238: 0 | D238: 0
A239: Outstandings | B239: 1,133 | C239: 1,133 | D239: 1,133
A241: Department of the Treasury
A243: Departmental Offices
A245: Troubled Asset Relief Program, Housing Programs, Letter of Credit Financing Account:
A246: Commitments | B246: 0 | C246: 0 | D246: 0
A247: New guaranteed loans | B247: 0 | C247: 0 | D247: 0
A248: Change in outstandings | B248: 0 | C248: 0 | D248: 0
A249: Outstandings | B249: 111 | C249: 111 | D249: 111
A251: Department of Veterans Affairs
A253: Benefits Programs
A255: Housing Guaranteed Loan Financing Account:
A256: Commitments | B256: 139,444 | C256: 145,176 | D256: 155,910
A257: New guaranteed loans | B257: 139,444 | C257: 145,176 | D257: 155,910
A258: Change in outstandings | B258: 53,721 | C258: 50,044 | D258: 51,221
A259: Outstandings | B259: 995,021 | C259: 1,045,065 | D259: 1,096,286
A261: International Assistance Programs
A263: International Security Assistance
... 101 more rows
